Cogmind - Beta 10.2 @@@ ROGUE MODE // 2020.11.14 @ 03:47:23 Player: cptwinky Result: Destroyed by Striker with Plasma Lance Performance ------------- Evolutions (5) 2500 Regions Visited (17) 3400 Robots Destroyed (72) 360 Value Destroyed (2261) 2261 Prototype IDs (66) 1320 Alien Tech Used (0) 0 Bonus (2688) 2688 TOTAL SCORE: 12529 Bonus ------- High Alert Combat Kills 12 Follower Combat Kills 60 Aligned with FarCom 300 Met Data Miner 300 Met Warlord at Base 500 MAIN.C Attacked Warlord 500 Warlord Defense Kill 1340 Friendly Fire -324 Cogmind --------- Core Integrity 0/1000 Matter 225/300 Energy 75/100 System Corruption 3% Temperature Cool (0) Movement Core (50) Location -5/Warlord Parts ------- > --- POWER (2) -------- (None) > --- PROPULSION (5) --- (None) > --- UTILITY (8) ------ (None) > --- WEAPON (2) ------- (None) > --- INVENTORY (4) ---- Long-range Sensor Array Makeshift Transmission Jammer Improved Propulsion Shielding Power Sword Peak State ------------ > --- POWER ------------ Micro Fission Core Micro Fission Core > --- PROPULSION ------- Cooled VTOL Module Nuclear Pulse Array Improved Diametric Drive Improved Diametric Drive > --- UTILITY ---------- Experimental Coolant Injector Large Storage Unit Advanced Signal Interpreter Advanced Hacking Suite Advanced Hacking Suite Advanced Hacking Suite Improved System Shield Ghost Barrier > --- WEAPON ----------- Makeshift Axe Power Sword > --- INVENTORY -------- Micro Fission Core Nuclear Pulse Array Long-range Sensor Array Makeshift Transmission Jammer Advanced ECM Suite Improved Propulsion Shielding Guided Plasma Cannon Mini Smartbomb Launcher Datajack [Rating: 106] Favorites ----------- Power Micro Nuclear Core Engine Improved Ion Engine Power Core Micro Nuclear Core Propulsion Light Treads Treads Light Treads Flight Unit Nuclear Pulse Array Utility Large Storage Unit Device Kinecellerator Storage Large Storage Unit Processor Advanced Signal Interpreter Hackware Advanced Hacking Suite Protection Improved Light Armor Plating Weapon Shotgun Energy Gun Small Laser Energy Cannon Guided Plasma Cannon Ballistic Gun Shotgun Launcher Rocket Array Slashing Weapon Makeshift Axe Special Melee Weapon Datajack Build | -11 -10 -10 -10 -9 -8 -7 -7 -7 -6 -6 -6 -6 -5 -5 -5 -5 -5 ------- Run | Scr Mat Min Exi Min Mat Fac Low Low Fac Low Low Dat Pro Fac Upp Upp War Slots Evolved 10 | . . . . . 4 2 . . 2 . . . . 2 . . . Power 1 | . . . . . . 1 . . . . . . . . . . . Propulsion 3 | . . . . . 1 1 . . 1 . . . . . . . . Utility 6 | . . . . . 3 . . . 1 . . . . 2 . . . Weapon . | . . . . . . . . . . . . . . . . . . Parts Attached 164 | 7 16 . 2 . 23 18 6 2 25 4 8 2 1 15 6 4 25 Power 17 | 1 1 . . . 2 5 . . 3 . . 1 . 2 . . 2 Engine 6 | 1 1 . . . 2 2 . . . . . . . . . . . Core 11 | . . . . . . 3 . . 3 . . 1 . 2 . . 2 Reactor . | . . . . . . . . . . . . . . . . . . Propulsion 32 | 2 5 . . . 10 4 . . 5 . . . . 1 . . 5 Treads 16 | 2 5 . . . 9 . . . . . . . . . . . . Leg . | . . . . . . . . . . . . . . . . . . Wheel . | . . . . . . . . . . . . . . . . . . Hover . | . . . . . . . . . . . . . . . . . . Flight 16 | . . . . . 1 4 . . 5 . . . . 1 . . 5 Utility 64 | 2 5 . . . 5 7 3 2 7 4 4 1 1 8 2 2 11 Device 19 | . . . . . 1 1 1 1 2 3 2 . 1 1 1 1 4 Storage 9 | 2 5 . . . . 1 . . 1 . . . . . . . . Processor 3 | . . . . . 1 . . . . . . . . 1 . . 1 Hackware 13 | . . . . . . 4 1 1 1 . 1 . . 4 . . 1 Protection 20 | . . . . . 3 1 1 . 3 1 1 1 . 2 1 1 5 Artifact . | . . . . . . . . . . . . . . . . . . Weapon 51 | 2 5 . 2 . 6 2 3 . 10 . 4 . . 4 4 2 7 Energy Gun 3 | 1 2 . . . . . . . . . . . . . . . . Energy Cannon 13 | . . . . . . . . . 4 . 1 . . 2 2 1 3 Ballistic Gun 11 | 1 3 . 1 . 4 . 1 . . . . . . . . . 1 Ballistic Cannon . | . . . . . . . . . . . . . . . . . . Launcher 8 | . . . . . 1 1 1 . 1 . 2 . . . . . 2 Special Weapon . | . . . . . . . . . . . . . . . . . . Impact Weapon . | . . . . . . . . . . . . . . . . . . Slashing Weapon 14 | . . . . . 1 1 1 . 5 . 1 . . 2 2 1 . Piercing Weapon . | . . . . . . . . . . . . . . . . . . Special Melee Weapon 2 | . . . 1 . . . . . . . . . . . . . 1 Unidentified Prototypes 10 | . . . . . 1 . . . . . 1 . . . . . 8 Parts Lost 21 | . 3 . . . . . . . . . . 1 1 . . . 16 Power 3 | . . . . . . . . . . . . 1 . . . . 2 Propulsion 6 | . . . . . . . . . . . . . . . . . 6 Utility 7 | . . . . . . . . . . . . . 1 . . . 6 Weapon 5 | . 3 . . . . . . . . . . . . . . . 2 Highest Loss Streak 15 | . 1 . . . . . . . . . . 1 1 . . . 15 Average Slot Usage (%) 92 | . 99 100 100 100 97 90 93 92 85 80 85 86 85 80 88 88 91 Engine 5 | . 14 14 14 14 9 1 . . . . . . . . . . . Core 6 | . . . . . . 13 15 15 12 13 13 13 13 11 11 11 10 Treads 12 | . 27 28 28 28 26 . . . . . . . . . . . . Flight 12 | . . . . . . 29 30 30 25 20 20 20 20 17 17 17 21 Device 2 | . . . . . 6 . 6 7 3 3 4 1 6 1 5 4 . Storage 13 | . 28 28 28 28 18 7 7 7 6 6 6 6 6 5 5 5 4 Processor 1 | . . . . . 6 . . . . . . . . . 5 5 4 Hackware 14 | . . . . . . 23 23 23 26 26 26 26 25 24 29 29 28 Protection 4 | . . . . . 11 5 . . 2 2 1 4 . 9 . . 4 Ballistic Gun 9 | . 21 28 21 28 17 . 1 . . . . . . . . . 1 Slashing Weapon 3 | . . . . . . 7 6 7 5 6 6 6 6 5 11 11 4 Naked Turns 8 | . . . . . . . . . . . . . . . . . 8 Heaviest Build 65 | 14 45 45 45 45 65 65 27 24 42 33 40 40 39 45 35 35 40 Greatest Support 72 | 40 40 40 40 40 72 72 24 24 47 47 45 47 45 47 45 47 45 Greatest Overweight (x) 1 | . 1 1 1 1 1 . 1 . . . . . . . . . 1 Average Overweight (x) . | . . 1 1 1 . . . . . . . . . . . . . Largest Inventory Capacity 16 | 8 16 16 16 16 16 16 8 8 10 10 10 10 10 10 10 10 10 Average Capacity 11 | 5 11 16 16 16 16 8 8 8 9 10 10 10 10 10 10 10 9 Most Carried 16 | 4 15 15 15 16 16 16 8 8 10 10 10 10 10 10 10 10 10 Average Carried 11 | 2 9 15 14 15 15 7 7 8 8 10 9 9 9 9 10 10 9 Final Capacity 16 | 8 16 16 16 16 16 8 8 8 10 10 10 10 10 10 10 10 4 Final Carried 16 | 4 15 15 15 16 16 8 8 8 10 10 10 9 9 10 10 10 4 Class Distribution -------------------- 45% | Mutant 31% | Hacker-Sprinter 21% | Wizard-Sprinter Dominant Class ---------------- Mutant | -10/Materials Mutant | -10/Mines Mutant | -10/Exiles Mutant | -9/Mines Mutant | -8/Materials Hacker-Sprinter | -7/Factory Hacker-Sprinter | -7/Lower Caves Hacker-Sprinter | -7/Lower Caves Hacker-Sprinter | -6/Factory Hacker-Sprinter | -6/Lower Caves Hacker-Sprinter | -6/Lower Caves Hacker-Sprinter | -6/Data Miner Hacker-Sprinter | -5/Proximity Caves Hacker-Sprinter | -5/Factory Wizard-Sprinter | -5/Upper Caves Wizard-Sprinter | -5/Upper Caves Wizard-Sprinter | -5/Warlord Resources | -11 -10 -10 -10 -9 -8 -7 -7 -7 -6 -6 -6 -6 -5 -5 -5 -5 -5 ----------- Run | Scr Mat Min Exi Min Mat Fac Low Low Fac Low Low Dat Pro Fac Upp Upp War Matter Collected 2885 | 265 533 . . . 500 204 116 . 370 . 120 . . 79 141 . 557 Remotely . | . . . . . . . . . . . . . . . . . . Salvage Created 2523 | 84 729 . . 21 391 59 23 . 642 . . . . 79 182 . 313 Parts 117 | 2 49 . . . 15 1 5 . 23 . . . . 7 2 . 13 Haulers Intercepted 4 | . 2 . . . 2 . . . . . . . . . . . . Recyclers Shooed 2 | . . . . . . 1 . . 1 . . . . . . . . Parts Field Recycled . | . . . . . . . . . . . . . . . . . . Retrieved Matter . | . . . . . . . . . . . . . . . . . . Parts Self-Destructed 132 | . . . . . . . 2 . . . . . 1 . 1 . 128 Prevented 26 | . . . . . . . 2 . . . . . 1 . . . 23 Kills | -11 -10 -10 -10 -9 -8 -7 -7 -7 -6 -6 -6 -6 -5 -5 -5 -5 -5 ------- Run | Scr Mat Min Exi Min Mat Fac Low Low Fac Low Low Dat Pro Fac Upp Upp War Combat Hostiles Destroyed 52 | . 19 . . 1 10 . 3 . 8 . . . . . . . 11 Melee 1 | . . . . . . . . . 1 . . . . . . . . Guns 27 | . 19 . . 1 7 . . . . . . . . . . . . AOE 24 | . . . . . 3 . 3 . 7 . . . . . . . 11 Classes Destroyed 18 | 1 6 . . 1 2 . 1 . 2 . . . . 1 . . 4 Worker 3 | . 1 . . . . . . . 2 . . . . . . . . Builder 1 | . 1 . . . . . . . . . . . . . . . . Tunneler 1 | . . . . . . . . . . . . . . 1 . . . Hauler 4 | . 2 . . . 2 . . . . . . . . . . . . Recycler 4 | 1 . . . . . 1 . . 2 . . . . . . . . Operator 3 | . 2 . . . . . . . 1 . . . . . . . . Watcher 4 | . . . . . . . . . 2 . . . . 2 . . . Swarmer 16 | . 9 . . . 3 . 3 . . . . . . . . . 1 Grunt 28 | . 10 . . . 5 . . . 7 . . . . . . . 6 Brawler 1 | . . . . . 1 . . . . . . . . . . . . Duelist 1 | . . . . . . . . . 1 . . . . . . . . Protector 1 | . . . . . . . . . . . . . . . . . 1 Sentry 1 | . . . . . 1 . . . . . . . . . . . . Demolisher 1 | . . . . 1 . . . . . . . . . . . . . Specialist 1 | . . . . . . . . . . . . . . . . . 1 Hunter 1 | . . . . . . . . . . . . . . . . . 1 Executioner 1 | . . . . . . . . . . . . . . . . . 1 Tinkerer 1 | . . . . . . . 1 . . . . . . . . . . Best Kill Streak 9 | 1 5 . . 1 3 1 3 . 9 . . . . 2 . . 4 Combat Bots Only 7 | . 4 . . 1 3 . 3 . 7 . . . . . . . 4 Max Kills in Single Turn 5 | 1 2 . . 1 3 1 1 . 5 . . . . 1 . . 2 Gunslinging 1 | . 1 . . . . . . . . . . . . . . . . Exploded 3 | . . . . . 3 . 1 . 3 . . . . . . . 2 Melee 1 | . . . . . . . . . 1 . . . . . . . . Uniques/NPCs Destroyed . | . . . . . . . . . . . . . . . . . . Combat | -11 -10 -10 -10 -9 -8 -7 -7 -7 -6 -6 -6 -6 -5 -5 -5 -5 -5 -------- Run | Scr Mat Min Exi Min Mat Fac Low Low Fac Low Low Dat Pro Fac Upp Upp War Damage Taken 4964 | . 620 . . 238 319 39 72 . 190 80 85 50 85 . . 146 3040 Core 1403 | . 59 . . 69 51 12 22 . 75 24 28 . 21 . . 36 1006 Absorbed by Shields . | . . . . . . . . . . . . . . . . . . Core Remaining (%) 83 | 100 . . . 48 90 . . 95 . . . . 82 . . . . Volleys Fired 163 | 7 71 . . 1 29 1 7 . 13 . 1 . . 5 2 1 25 Largest 2 | 2 2 . . 2 2 1 1 . 1 . 1 . . 1 1 1 1 Hottest 120 | 60 60 . . 46 46 39 39 . 120 . 120 . . 120 120 120 120 Shots Fired 265 | 14 138 . . 2 56 1 7 . 13 . 1 . . 5 2 1 25 Gun 213 | 14 138 . . 2 55 . 4 . . . . . . . . . . Cannon 21 | . . . . . . . . . 6 . 1 . . 5 2 1 6 Launcher 31 | . . . . . 1 1 3 . 7 . . . . . . . 19 Special . | . . . . . . . . . . . . . . . . . . Kinetic 148 | 7 80 . . 2 55 . 4 . . . . . . . . . . Thermal 56 | . 35 . . . . . . . 6 . 1 . . 5 2 1 6 Explosive 31 | . . . . . 1 1 3 . 7 . . . . . . . 19 Electromagnetic 30 | 7 23 . . . . . . . . . . . . . . . . Robot Hit Streak 20 | 2 20 . . 1 9 . 2 . . . . . . . . . 5 Robot Miss Streak 4 | 2 3 . . 2 4 . 1 . . . . . . . . . . Penetration Max . | . . . . . . . . . . . . . . . . . . Secondary Targets 3 | . 2 . . . 1 . . . . . . . . . . . . Max Gunslinging Chain 1 | . 1 . . . 1 . . . . . . . . . . . . Shots Hit Robots 188 | 7 96 . 5 1 45 3 3 . 8 . . 1 3 6 5 . 5 Core Hits 164 | 1 38 . . 2 27 1 7 . 24 . . . . 3 3 . 58 Critical Hits 2 | 1 . . . . . . . . . . . . . 1 . . . Critical Kills 1 | . . . . . . . . . . . . . . 1 . . . Critical Parts Destroyed 1 | 1 . . . . . . . . . . . . . . . . . Melee Attacks 111 | . . . 5 . 1 9 1 . 31 . 5 7 4 28 10 4 6 Impact . | . . . . . . . . . . . . . . . . . . Slashing 106 | . . . . . 1 9 1 . 31 . 5 7 4 28 10 4 6 Piercing . | . . . . . . . . . . . . . . . . . . Sneak Attacks 14 | . . . 5 . . 1 . . 5 . . 1 . 2 . . . Combat Hostiles 1 | . . . . . . . . . 1 . . . . . . . . Follow-up Attacks 3 | . . . . . . . . . . . . . . 3 . . . Damage Inflicted 11592 | 109 1189 . . 33 971 220 391 . 1970 . . 105 117 422 667 . 5398 Guns 2084 | 109 1115 . . 33 784 . 43 . . . . . . . . . . Cannons 157 | . . . . . . . . . . . . . . . . . 157 Explosions 7090 | . 66 . . . 183 . 348 . 1252 . . . . . . . 5241 Melee 2249 | . . . . . . 220 . . 718 . . 105 117 422 667 . . Ramming 12 | . 8 . . . 4 . . . . . . . . . . . . Kinetic 1418 | 30 528 . . 33 784 . 43 . . . . . . . . . . Thermal 1108 | . 416 . . . . . . . 535 . . . . . . . 157 Explosive 6489 | . . . . . 183 . 348 . 717 . . . . . . . 5241 Electromagnetic 316 | 79 237 . . . . . . . . . . . . . . . . Impact . | . . . . . . . . . . . . . . . . . . Slashing 2249 | . . . . . . 220 . . 718 . . 105 117 422 667 . . Piercing . | . . . . . . . . . . . . . . . . . . Highest Corruption 3 | . . . . . . 1 . . . . . . . . . . 3 Average Corruption 1 | . . . . . . 1 . . . . . . . . . . 2 Corruption Purged 1 | . . . . . . 1 . . . . . . . . . . . Effects 2 | . . . . . . . . . . . . . . . . . 2 Matter Fused 1 | . . . . . . . . . . . . . . . . . 1 Data Loss (minor) 1 | . . . . . . . . . . . . . . . . . 1 Overload Shots . | . . . . . . . . . . . . . . . . . . Overflow Damage 851 | . 25 . . . . 90 7 . 294 . . 45 23 145 180 . 42 Projectiles . | . . . . . . . . . . . . . . . . . . Explosions 162 | . 25 . . . . . 7 . 88 . . . . . . . 42 Melee 689 | . . . . . . 90 . . 206 . . 45 23 145 180 . . Knockbacks . | . . . . . . . . . . . . . . . . . . Impact . | . . . . . . . . . . . . . . . . . . Kinetic . | . . . . . . . . . . . . . . . . . . Secondary . | . . . . . . . . . . . . . . . . . . Self-Inflicted Damage 138 | . . . . . . . 45 . . . . . . . . . 93 Shots 3 | . . . . . . . 1 . . . . . . . . . 2 Rammed 4 | . 2 . . . 2 . . . . . . . . . . . . Targets Rammed 5 | . 3 . . . 2 . . . . . . . . . . . . Kicked . | . . . . . . . . . . . . . . . . . . Crushed 1 | . 1 . . . . . . . . . . . . . . . . Highest Temperature 372 | 20 138 . . . 23 18 12 . 164 29 82 1 . 288 80 80 372 Average Temperature 63 | 14 43 . . . 7 11 6 . 31 12 42 1 . 112 40 26 140 Received Heat Transfer 855 | . 210 . . . 162 18 . . 60 39 18 6 . . . 24 318 Effects 2 | . . . . . . . . . . . . . . . . . 2 Interference 1 | . . . . . . . . . . . . . . . . . 1 Matter Decay 1 | . . . . . . . . . . . . . . . . . 1 Siege Activations . | . . . . . . . . . . . . . . . . . . Robots Corrupted . | . . . . . . . . . . . . . . . . . . Combat Hostiles . | . . . . . . . . . . . . . . . . . . Parts Fried 1 | 1 . . . . . . . . . . . . . . . . . Impact Corruptions . | . . . . . . . . . . . . . . . . . . Robots Melted . | . . . . . . . . . . . . . . . . . . Combat Hostiles . | . . . . . . . . . . . . . . . . . . Parts Melted . | . . . . . . . . . . . . . . . . . . Heat Transferred 1466 | . 825 . . . . . . . 400 . . . . . . . 241 Parts Sabotaged 7 | . . . . . . . . . . . . . . . . . 7 Parts Stolen . | . . . . . . . . . . . . . . . . . . Parts Stripped . | . . . . . . . . . . . . . . . . . . Power Chain Reactions 2 | . 2 . . . . . . . . . . . . . . . . Missiles Intercepted . | . . . . . . . . . . . . . . . . . . Alert | -11 -10 -10 -10 -9 -8 -7 -7 -7 -6 -6 -6 -6 -5 -5 -5 -5 -5 ------- Run | Scr Mat Min Exi Min Mat Fac Low Low Fac Low Low Dat Pro Fac Upp Upp War Peak Influence 505 | 5 254 60 . 20 146 279 . . 505 . . . . 444 . . . Initial 105 | . 3 60 . . 7 . . . 105 . . . . . . . . Average 86 | . 124 60 . 1 34 114 . . 178 . . . . 57 . . . Maximum Alert Level 2 | . 1 . . . . 1 . . 2 . . . . 2 . . . Low Security (%) 87 | 100 82 100 . 100 100 72 . . 72 . . . . 89 . . . Level 1 8 | . 17 . . . . 27 . . 5 . . . . . . . . Level 2 4 | . . . . . . . . . 21 . . . . 10 . . . Level 3 . | . . . . . . . . . . . . . . . . . . Level 4 . | . . . . . . . . . . . . . . . . . . Level 5 . | . . . . . . . . . . . . . . . . . . High Security . | . . . . . . . . . . . . . . . . . . Max Security . | . . . . . . . . . . . . . . . . . . Squads Dispatched 11 | . 4 . . . 1 4 . . 2 . . . . . . . . Investigation 4 | . 2 . . . 1 1 . . . . . . . . . . . Extermination 2 | . . . . . . 1 . . 1 . . . . . . . . Reinforcement 4 | . 2 . . . . 1 . . 1 . . . . . . . . Assault 1 | . . . . . . 1 . . . . . . . . . . . Garrison . | . . . . . . . . . . . . . . . . . . Intercept . | . . . . . . . . . . . . . . . . . . Construction Impeded . | . . . . . . . . . . . . . . . . . . Haulers Reinforced . | . . . . . . . . . . . . . . . . . . Stealth | -11 -10 -10 -10 -9 -8 -7 -7 -7 -6 -6 -6 -6 -5 -5 -5 -5 -5 --------- Run | Scr Mat Min Exi Min Mat Fac Low Low Fac Low Low Dat Pro Fac Upp Upp War Distress Signals 2 | . 1 . . . . . . . . . . . . . . . 1 Communications Jammed 3 | . . . . . . . . . 3 . . . . . . . . Distress Signals 3 | . . . . . . . . . 3 . . . . . . . . Times Spotted 227 | . 32 . . 17 15 9 4 . 17 9 2 4 2 6 . 1 109 Peak Tracking Total 67 | . 4 . . 11 4 2 4 . 6 7 1 4 2 3 . 1 67 Tactical Retreats 12 | . 1 . . . . . . . 5 3 . . . . . . 3 Traps | -11 -10 -10 -10 -9 -8 -7 -7 -7 -6 -6 -6 -6 -5 -5 -5 -5 -5 ------- Run | Scr Mat Min Exi Min Mat Fac Low Low Fac Low Low Dat Pro Fac Upp Upp War Traps Triggered 3 | . 2 . . . 1 . . . . . . . . . . . . Indirectly . | . . . . . . . . . . . . . . . . . . Trap Hack Attempts . | . . . . . . . . . . . . . . . . . . Triggered . | . . . . . . . . . . . . . . . . . . Disarmed 6 | . . . . . . . . . 6 . . . . . . . . Reprogrammed 11 | . . . . . 6 5 . . . . . . . . . . . Reused 4 | . . . . . 2 1 . . . . . . 1 . . . . Traps Extracted . | . . . . . . . . . . . . . . . . . . Installed 1 | . . . . . . . . . . . . . 1 . . . . Triggered 44 | . . . . . 2 1 3 . . . . . 2 . . . 36 Exploded 1 | . . . 1 . . . . . . . . . . . . . . Machines | -11 -10 -10 -10 -9 -8 -7 -7 -7 -6 -6 -6 -6 -5 -5 -5 -5 -5 ---------- Run | Scr Mat Min Exi Min Mat Fac Low Low Fac Low Low Dat Pro Fac Upp Upp War Machines Disabled 11 | . . . . . . . 2 . 5 . 1 1 . . . . 2 Max in Single Turn 3 | . . . . . . . 1 . 3 . 1 1 . . . . 1 Garrison Access 4 | . . . . . 1 1 . . 1 . . . . 1 . . . Machines Sabotaged . | . . . . . . . . . . . . . . . . . . Garrisons Compromised 1 | . . . . . . 1 . . . . . . . . . . . Overloaded Fab Kills . | . . . . . . . . . . . . . . . . . . Fab Network Shutdowns 2 | . . . . . . . . . 1 . . . . 1 . . . Hacking | -11 -10 -10 -10 -9 -8 -7 -7 -7 -6 -6 -6 -6 -5 -5 -5 -5 -5 --------- Run | Scr Mat Min Exi Min Mat Fac Low Low Fac Low Low Dat Pro Fac Upp Upp War Machines Accessed 70 | . 8 . 2 1 12 10 2 . 14 . 2 4 . 12 1 . 2 Terminals 31 | . 6 . . . 9 5 . . 6 . . . . 5 . . . Fabricators 6 | . . . . . . 2 . . 2 . . . . 2 . . . Repair Stations 7 | . 1 . . . 1 1 . . 3 . . . . 1 . . . Recycling Units 5 | . 1 . . . . 1 . . 1 . . . . 2 . . . Scanalyzers 2 | . . . . . 1 . . . 1 . . . . . . . . Garrison Access 5 | . . . . . 1 1 . . 1 . . . . 2 . . . Total Hacks 229 | . 26 . 2 1 46 24 5 . 58 . 6 32 . 26 1 . 2 Successful 181 | . 13 . 2 1 31 18 5 . 45 . 6 32 . 25 1 . 2 Failed 48 | . 13 . . . 15 6 . . 13 . . . . 1 . . . Catastrophic 4 | . . . . . . 2 . . 2 . . . . . . . . Database Lockouts . | . . . . . . . . . . . . . . . . . . Manual 90 | . 15 . 1 . 21 14 . . 26 . . . . 12 . . 1 Terminals 104 | . 18 . . . 32 10 . . 33 . . . . 11 . . . Fabricators 22 | . . . . . . 6 . . 7 . . . . 9 . . . Repair Stations 25 | . 6 . . . 5 2 . . 10 . . . . 2 . . . Recycling Units 8 | . 2 . . . . 2 . . 2 . . . . 2 . . . Scanalyzers 13 | . . . . . 8 . . . 5 . . . . . . . . Garrison Access 8 | . . . . . 1 4 . . 1 . . . . 2 . . . Terminal Hacks 89 | . 5 . 2 1 12 4 5 . 14 . 6 32 . 5 1 . 2 Record 22 | . . . 1 . . . 4 . . . 5 11 . . . . 1 Part Schematic 15 | . 1 . . . . 1 . . 2 . . 11 . . . . . Robot Schematic 7 | . . . . . . . . . . . . 7 . . . . . Robot Analysis 4 | . 2 . . . 2 . . . . . . . . . . . . Prototype ID Bank 8 | . 2 . . . 3 . . . . . . 3 . . . . . Open Door 5 | . . . . 1 . . 1 . . . 1 . . . 1 . 1 Branch Access Points 3 | . . . . . . 1 . . 1 . . . . 1 . . . Terminal Index 2 | . . . . . . . . . 1 . . . . 1 . . . Fabricator Index 2 | . . . . . . . . . 1 . . . . 1 . . . Scanalyzer Index 1 | . . . . . 1 . . . . . . . . . . . . Alert Level 1 | . . . . . . . . . 1 . . . . . . . . Unreport Threat 7 | . . . . . 2 . . . 5 . . . . . . . . Locate Traps 1 | . . . . . 1 . . . . . . . . . . . . Disarm Traps 1 | . . . . . . . . . 1 . . . . . . . . Reprogram Traps 2 | . . . . . 1 1 . . . . . . . . . . . Recall Extermination 1 | . . . . . . 1 . . . . . . . . . . . Hauler Manifests 1 | . . . . . 1 . . . . . . . . . . . . Registered Prototypes 1 | . . . . . . . . . . . . . . 1 . . . Zone Layout 4 | . . . . . 1 . . . 2 . . . . 1 . . . EX-Prototype ID Bank 1 | . . . 1 . . . . . . . . . . . . . . Fabricator Hacks 16 | . . . . . . 4 . . 5 . . . . 7 . . . Load Schematic 7 | . . . . . . 2 . . 2 . . . . 3 . . . Build 9 | . . . . . . 2 . . 3 . . . . 4 . . . Repair Station Hacks 24 | . 6 . . . 4 2 . . 10 . . . . 2 . . . Scan Component 12 | . 3 . . . 2 1 . . 5 . . . . 1 . . . Repair 12 | . 3 . . . 2 1 . . 5 . . . . 1 . . . Recycling Unit Hacks 5 | . 1 . . . . 1 . . 1 . . . . 2 . . . Retrieve Components 5 | . 1 . . . . 1 . . 1 . . . . 2 . . . Scanalyzer 13 | . . . . . 8 . . . 5 . . . . . . . . Insert Component 6 | . . . . . 4 . . . 2 . . . . . . . . Analyze 7 | . . . . . 4 . . . 3 . . . . . . . . Garrison Access Hacks 3 | . . . . . 1 . . . 1 . . . . 1 . . . Seal Access 3 | . . . . . 1 . . . 1 . . . . 1 . . . Unauthorized Hacks 31 | . 1 . . . 6 7 . . 9 . . . . 8 . . . Terminals 21 | . 1 . . . 6 1 . . 8 . . . . 5 . . . Track 2 | . . . . . . . . . 1 . . . . 1 . . . Assimilate 6 | . . . . . 2 1 . . 2 . . . . 1 . . . Botnet 8 | . 1 . . . 2 . . . 3 . . . . 2 . . . Disrupt 2 | . . . . . 1 . . . 1 . . . . . . . . Operators 3 | . . . . . 1 . . . 1 . . . . 1 . . . Fabricators 5 | . . . . . . 2 . . 1 . . . . 2 . . . Prioritize 1 | . . . . . . . . . . . . . . 1 . . . Siphon 4 | . . . . . . 2 . . 1 . . . . 1 . . . Repair Stations . | . . . . . . . . . . . . . . . . . . Recycling Units 1 | . . . . . . 1 . . . . . . . . . . . Mask 1 | . . . . . . 1 . . . . . . . . . . . Scanalyzers . | . . . . . . . . . . . . . . . . . . Garrison Access 4 | . . . . . . 3 . . . . . . . 1 . . . Reprogram 4 | . . . . . . 3 . . . . . . . 1 . . . Data Cores Recovered . | . . . . . . . . . . . . . . . . . . Used . | . . . . . . . . . . . . . . . . . . Hacking Detections 39 | . 8 . . . 10 7 . . 9 . . . . 5 . . . Full Trace Events 2 | . 1 . . . . 1 . . . . . . . . . . . Feedback Events 1 | . . . . . . 1 . . . . . . . . . . . Corruption 1 | . . . . . . 1 . . . . . . . . . . . Feedback Blocked . | . . . . . . . . . . . . . . . . . . Robot Schematics Acquired 7 | . . . . . . . . . . . . 7 . . . . . Robots Built . | . . . . . . . . . . . . . . . . . . Matter . | . . . . . . . . . . . . . . . . . . Time . | . . . . . . . . . . . . . . . . . . Total Robot Build Rating . | . . . . . . . . . . . . . . . . . . Part Schematics Acquired 21 | . 1 . . . 4 1 . . 4 . . 11 . . . . . Parts Built 11 | . . . . . . 2 . . 5 . . . . 4 . . . Matter 1557 | . . . . . . 281 . . 530 . . . . 746 . . . Time 680 | . . . . . . 146 . . 159 . . . . 375 . . . Total Part Build Rating 60 | . . . . . . 7 . . 30 . . . . 23 . . . Parts Repaired 12 | . 3 . . . 2 1 . . 5 . . . . 1 . . . Time 359 | . 78 . . . 64 19 . . 170 . . . . 28 . . . Parts Recycled . | . . . . . . . . . . . . . . . . . . Recycled Matter . | . . . . . . . . . . . . . . . . . . Retrieved Matter . | . . . . . . . . . . . . . . . . . . Retrieved Components 20 | . 10 . . . . . . . 10 . . . . . . . . Parts Scanalyzed 6 | . . . . . 4 . . . 2 . . . . . . . . Part Schematics Acquired 6 | . . . . . 4 . . . 2 . . . . . . . . Parts Damaged . | . . . . . . . . . . . . . . . . . . Bothacking | -11 -10 -10 -10 -9 -8 -7 -7 -7 -6 -6 -6 -6 -5 -5 -5 -5 -5 ------------ Run | Scr Mat Min Exi Min Mat Fac Low Low Fac Low Low Dat Pro Fac Upp Upp War Used RIF Installer . | . . . . . . . . . . . . . . . . . . Robots Hacked 5 | . . . 5 . . . . . . . . . . . . . . Non-combat 3 | . . . 3 . . . . . . . . . . . . . . Combat 2 | . . . 2 . . . . . . . . . . . . . . Robot Hacks Applied 5 | . . . 5 . . . . . . . . . . . . . . parse_system 5 | . . . 5 . . . . . . . . . . . . . . Relay Couplers Released 3 | . . . . . . 3 . . . . . . . . . . . Machine Destruction 3 | . . . . . . 3 . . . . . . . . . . . Robots Rewired . | . . . . . . . . . . . . . . . . . . Allies Hacked . | . . . . . . . . . . . . . . . . . . Hacks Repelled . | . . . . . . . . . . . . . . . . . . Allies | -11 -10 -10 -10 -9 -8 -7 -7 -7 -6 -6 -6 -6 -5 -5 -5 -5 -5 -------- Run | Scr Mat Min Exi Min Mat Fac Low Low Fac Low Low Dat Pro Fac Upp Upp War Total Allies 13 | . . . . . 2 5 3 . 2 . . . . 1 . . . Largest Group 10 | . . . . . 2 7 10 6 3 . . . . 1 1 . . Highest-Rated Group 208 | . . . . . 36 115 208 99 52 . . . . 26 26 . . Highest-Rated Ally 31 | . . . . . 26 26 31 26 26 . . . . 26 26 . . Total Orders 14 | . . . . . 2 2 . . 6 . . . . 4 . . . STAY 7 | . . . . . 1 1 . . 3 . . . . 2 . . . FOLLOW 7 | . . . . . 1 1 . . 3 . . . . 2 . . . Ally Attacks 19 | . . . . . . 12 7 . . . . . . . . . . Total Damage 281 | . . . . . . 224 57 . . . . . . . . . . Kills 4 | . . . . . . 3 1 . . . . . . . . . . Allies Corrupted . | . . . . . . . . . . . . . . . . . . Allies Melted 1 | . . . . . . . . . . . . . . . . . 1 Intel | -11 -10 -10 -10 -9 -8 -7 -7 -7 -6 -6 -6 -6 -5 -5 -5 -5 -5 ------- Run | Scr Mat Min Exi Min Mat Fac Low Low Fac Low Low Dat Pro Fac Upp Upp War Robot Analysis Total 4 | . 2 . . . 2 . . . . . . . . . . . . Derelict Logs Recovered 9 | . . 1 . . . . 2 . . 2 . . 1 . 1 2 . Drone Launches . | . . . . . . . . . . . . . . . . . . Drone Recoveries . | . . . . . . . . . . . . . . . . . . Exploration | -11 -10 -10 -10 -9 -8 -7 -7 -7 -6 -6 -6 -6 -5 -5 -5 -5 -5 ------------- Run | Scr Mat Min Exi Min Mat Fac Low Low Fac Low Low Dat Pro Fac Upp Upp War Turns Passed 10895 | 157 1559 71 704 547 1906 862 289 57 1103 198 379 68 135 897 381 105 1477 Spaces Moved 12112 | 78 746 37 347 297 830 2211 562 143 1667 503 918 140 348 1238 782 275 990 Core 19 | 2 . . . . . . . . . . . . . . . . 17 Treads 2345 | 76 746 37 347 297 830 12 . . . . . . . . . . . Legs . | . . . . . . . . . . . . . . . . . . Wheels . | . . . . . . . . . . . . . . . . . . Hover . | . . . . . . . . . . . . . . . . . . Flight 9748 | . . . . . . 2199 562 143 1667 503 918 140 348 1238 782 275 973 Fastest Speed 20 | 50 160 180 180 180 150 26 26 26 20 28 32 28 32 28 32 28 24 Average Speed 55 | 157 160 180 180 180 156 26 32 26 28 31 32 31 32 31 32 31 30 Slowest Speed 180 | 160 180 180 180 180 180 150 96 26 32 32 32 32 32 32 32 32 100 Overloaded Moves 130 | . . . . . . . . . 35 36 . 16 . 22 . 21 . Propulsion Burnouts . | . . . . . . . . . . . . . . . . . . Robots Hopped 35 | . . . . . . 5 . . 19 3 . . . 3 . . 5 Cave-ins Triggered . | . . . . . . . . . . . . . . . . . . Exploration Rate (%) 54 | 5 91 15 70 74 58 36 58 14 33 71 79 77 55 29 79 49 88 Regions Visited 17 Branch Regions 12 Pre-discovered Areas 4 | . . . 1 1 . . . . . 1 . 1 . . . . . Known Exits Taken 7 | . . . . . . 1 . . 1 1 . . 1 1 1 1 . Unknown Exits Taken 10 | 1 1 1 1 1 1 . 1 1 . . 1 1 . . . . . Scrap Searched 14 | . . . . . . . 3 . . 1 4 . 2 . 2 2 . Spaces Dug 100 | . . . . . 1 16 26 . 26 . 5 1 . 16 4 4 1 Terrain Destroyed 326 | . 5 . . . 14 16 27 . 79 . 5 1 . 16 4 4 155 Melee 46 | . . . . . 1 3 . . 20 . 4 1 . 11 2 3 1 Projectile 15 | . . . . . . . . . 6 . 1 . . 5 2 1 . AOE 265 | . 5 . . . 13 13 27 . 53 . . . . . . . 154 Terrain Rammed . | . . . . . . . . . . . . . . . . . . Walls Destroyed . | . . . . . . . . . . . . . . . . . . Machines Disabled . | . . . . . . . . . . . . . . . . . . Actions | -11 -10 -10 -10 -9 -8 -7 -7 -7 -6 -6 -6 -6 -5 -5 -5 -5 -5 --------- Run | Scr Mat Min Exi Min Mat Fac Low Low Fac Low Low Dat Pro Fac Upp Upp War Total 15785 | 96 980 42 421 310 1384 2466 659 161 2212 535 993 155 366 1704 896 284 2121 Wait 3114 | 1 112 6 66 2 466 206 79 17 472 32 59 7 11 408 100 2 1068 Move 12027 | 77 745 36 346 296 829 2200 561 142 1629 496 917 139 347 1231 781 274 981 Hop 33 | . . . . . . 5 . . 18 3 . . . 3 . . 4 Pick Up 71 | 4 18 . 1 6 13 6 2 . 12 . 1 . 1 6 . . 1 Fast Attach 56 | 7 5 . . . 7 5 1 . 6 . 2 . . 7 . . 16 Attach 25 | . 3 . . . 4 5 1 . 3 . 1 1 . 3 . . 4 Detach 17 | . 2 . . . 1 6 1 . . . 1 . . 4 . . 2 Swap 83 | . 8 . 2 . 12 8 4 2 16 4 5 1 1 5 6 4 5 Drop 87 | . 13 . 1 5 20 15 2 . 12 . 1 . 1 7 . . 10 Fire 163 | 7 71 . . 1 29 1 7 . 13 . 1 . . 5 2 1 25 Melee 103 | . . . 5 . 1 9 1 . 31 . 5 7 4 25 7 3 5 Ram . | . . . . . . . . . . . . . . . . . . Kick . | . . . . . . . . . . . . . . . . . . Crush 5 | . 3 . . . 2 . . . . . . . . . . . . Escape Stasis . | . . . . . . . . . . . . . . . . . . Rewire . | . . . . . . . . . . . . . . . . . . Trap 1 | . . . . . . . . . . . . . 1 . . . . Miscellaneous . | . . . . . . . . . . . . . . . . . . Route ------- -11/Scrapyard -10/Materials (discovered 4 exits: [*Mat x2] / [*Min x2]) -10/Mines (discovered 2 exits: [*Mat] / *Exi) -10/Exiles -9/Mines -8/Materials -7/Factory (discovered 6 exits: *Fac x2 / Sto x2 / *Low x2) -7/Lower Caves -7/Lower Caves -6/Factory (discovered 6 exits: *Fac x2 / *Low x2 / Ext x2) -6/Lower Caves -6/Lower Caves -6/Data Miner -5/Proximity Caves -5/Factory (discovered 2 exits: *Upp x2) -5/Upper Caves -5/Upper Caves -5/Warlord History --------- Turn | Location | Event 9 | -11/Scrapyard | Discovered new exit (range 16) 158 | -11/Scrapyard | Entered Materials 315 | -10/Materials | Build established: Mutant 502 | -10/Materials | Repaired Lgt. Treads 530 | -10/Materials | Repaired Lgt. Treads 688 | -10/Materials | Discovered new exit (range 16) 959 | -10/Materials | Discovered new exit (range 13) 981 | -10/Materials | Discovered new exit (range 15) 1314 | -10/Materials | Repaired Lgt. Treads 1506 | -10/Materials | Discovered new exit (range 15) 1717 | -10/Materials | Entered Mines 1730 | -10/Mines | Discovered new exit (range 7) 1734 | -10/Mines | Learned Materials terminal intel 1771 | -10/Mines | Deemed a non-threat by the Exiles lab entrance 1771 | -10/Mines | Discovered new exit (range 5) 1788 | -10/Mines | Entered Exiles 1833 | -10/Exiles | Met 8R-AWN 1862 | -10/Exiles | Met EX-HEX 2057 | -10/Exiles | Met EX-DEC 2106 | -10/Exiles | Learned location of Zion (-7) 2142 | -10/Exiles | Met EX-BIN 2174 | -10/Exiles | Aligned with FarCom system 2176 | -10/Exiles | Given EX-Vault access code 2221 | -10/Exiles | Opened EX-Vault 2241 | -10/Exiles | Found Gui. Plasma Cannon 2276 | -10/Exiles | Warned to stay clear of 0b10 Research branches 2297 | -10/Exiles | Exiles lab attacked by MAIN.C 2402 | -10/Exiles | Discovered new exit (range 14) 2492 | -10/Exiles | Left Exiles lab with Gui. Plasma Cannon 2492 | -10/Exiles | Entered Mines 2614 | -9/Mines | Met a Derelict who couldn't figure out how to use a Trap Extractor 2912 | -9/Mines | Discovered new exit (range 15) 2990 | -9/Mines | Assembled infested the area 3028 | -9/Mines | Core integrity fell below 50% 3034 | -9/Mines | Learned location of Storage (-7) 3039 | -9/Mines | Entered Materials 3039 | -8/Materials | Evolved 4 slots: Propulsion x1, Utility x3 3040 | -8/Materials | Loaded intel: 12 terminal locations 3697 | -8/Materials | Repaired Shotgun 3742 | -8/Materials | Repaired Shotgun 4643 | -8/Materials | Discovered new exit (range 8) 4945 | -8/Materials | Entered Factory 4945 | -7/Factory | Accompanied by 2 allies 4945 | -7/Factory | Evolved 2 slots: Power x1, Propulsion x1 5121 | -7/Factory | Discovered new exit (range 13) 5162 | -7/Factory | Identified exit to Storage 5162 | -7/Factory | Identified exit to Lower Caves 5265 | -7/Factory | Build established: Hacker-Sprinter 5352 | -7/Factory | Discovered new exit (range 15) 5550 | -7/Factory | Fabricated Imp. Flight Unit? 5720 | -7/Factory | Repaired Lgt. Nuclear Core 5737 | -7/Factory | Fabricated Imp. System Shield (x1) 5807 | -7/Factory | Entered Lower Caves 5807 | -7/Lower Caves | Accompanied by 7 allies 5876 | -7/Lower Caves | Learned location of 1 exit from Factory 5894 | -7/Lower Caves | A Commander dispatched an escort 5895 | -7/Lower Caves | Learned Research security intel 5895 | -7/Lower Caves | Learned Research garrison access intel 6049 | -7/Lower Caves | Learned Factory security intel 6066 | -7/Lower Caves | Discovered new exit (range 6) 6096 | -7/Lower Caves | Entered another Lower Caves area 6096 | -7/Lower Caves | Accompanied by 9 allies 6096 | -7/Lower Caves | Discovered new exit (range 14) 6097 | -7/Lower Caves | Commander's escort returned to base 6097 | -7/Lower Caves | Commander's escort returned to base 6097 | -7/Lower Caves | Commander's escort returned to base 6097 | -7/Lower Caves | Encountered a Warlord checkpoint 6153 | -7/Lower Caves | Entered Factory 6153 | -6/Factory | Accompanied by 3 allies 6153 | -6/Factory | Evolved 2 slots: Propulsion x1, Utility x1 6154 | -6/Factory | Identified exit to Factory 6275 | -6/Factory | Destroyed 7 combat bots 6297 | -6/Factory | Repaired Hvy. Missile Launcher 6467 | -6/Factory | Repaired Imp. Propulsion Shielding 6518 | -6/Factory | Discovered exit to Factory (range 5) 6542 | -6/Factory | Spotted B-75 Beast 6580 | -6/Factory | Identified exit to Lower Caves 6580 | -6/Factory | Identified exit to Extension 6636 | -6/Factory | Fabricated Nuclear Pulse Array (x2) 6695 | -6/Factory | Fabricated Nuclear Pulse Array (x2) 6794 | -6/Factory | Fabricated Adv. Hacking Suite? 6858 | -6/Factory | Local fabrication network quarantined 6990 | -6/Factory | Repaired Mic. Nuclear Core 7029 | -6/Factory | Repaired Lgt. Nuclear Core 7216 | -6/Factory | Found Prototype Launcher 7231 | -6/Factory | Repaired Nuclear Pulse Array 7256 | -6/Factory | Entered Lower Caves 7258 | -6/Lower Caves | Attracted the attention of an 0b10 outpost 7284 | -6/Lower Caves | Identified exit to Lower Caves 7417 | -6/Lower Caves | Encountered a Warlord checkpoint 7454 | -6/Lower Caves | Entered another Lower Caves area 7501 | -6/Lower Caves | Identified Rocket Array 7522 | -6/Lower Caves | Learned Extension trap positions 7522 | -6/Lower Caves | Learned Research emergency access door positions 7522 | -6/Lower Caves | Learned Extension garrison access intel 7566 | -6/Lower Caves | Attacked by a delusional Derelict stockpiling parts 7699 | -6/Lower Caves | Discovered new exit (range 5) 7833 | -6/Lower Caves | Entered Data Miner 7833 | -6/Data Miner | Discovered new exit (range 6) 7840 | -6/Data Miner | Met Data Miner 7846 | -6/Data Miner | Learned location of Section 7 (-2) 7846 | -6/Data Miner | Acquired the access code to Warlord's prototype stash 7851 | -6/Data Miner | Received God Mode back door access code from Data Miner 7876 | -6/Data Miner | Data Conduit disabled 7901 | -6/Data Miner | Entered Proximity Caves 7942 | -5/Proximity Caves | Learned Factory garrison access intel 8033 | -5/Proximity Caves | Discovered exit to Factory (range 8) 8036 | -5/Proximity Caves | Entered Factory 8036 | -5/Factory | Evolved 2 slots: Utility x2 8037 | -5/Factory | Loaded intel: 4 garrison access locations 8043 | -5/Factory | Identified exit to Upper Caves 8105 | -5/Factory | Repaired Nuclear Pulse Array 8404 | -5/Factory | Fabricated Imp. System Shield (x1) 8487 | -5/Factory | Fabricated Mni. Smartbomb Launcher (x1) 8542 | -5/Factory | Fabricated Adv. Hacking Suite (x1) 8596 | -5/Factory | Fabricated Adv. Hacking Suite (x1) 8838 | -5/Factory | Local fabrication network quarantined 8860 | -5/Factory | Build established: Wizard-Sprinter 8933 | -5/Factory | Entered Upper Caves 8933 | -5/Upper Caves | Accompanied by 1 ally 9002 | -5/Upper Caves | Learned Factory emergency access door positions 9073 | -5/Upper Caves | Encountered a Warlord checkpoint 9310 | -5/Upper Caves | Discovered new exit (range 7) 9312 | -5/Upper Caves | Identified exit to Upper Caves 9314 | -5/Upper Caves | Entered another Upper Caves area 9375 | -5/Upper Caves | Learned Factory garrison access intel 9386 | -5/Upper Caves | Learned Factory security intel 9396 | -5/Upper Caves | Spotted B-75 Beast 9413 | -5/Upper Caves | Discovered new exit (range 9) 9419 | -5/Upper Caves | Identified exit to Warlord 9419 | -5/Upper Caves | Entered Warlord 9557 | -5/Warlord | Visited the Vortex Lab 9560 | -5/Warlord | Warlord's base attacked by MAIN.C 9622 | -5/Warlord | Met Warlord 9625 | -5/Warlord | Opened Warlord's prototype stash 9633 | -5/Warlord | Found Prototype Hackware 9633 | -5/Warlord | Identified Ghost Barrier 9642 | -5/Warlord | Found Prototype Processor 9642 | -5/Warlord | Identified Exp. Target Analyzer 9910 | -5/Warlord | Warlord forces counterattacked 10290 | -5/Warlord | Spotted Executioner 10301 | -5/Warlord | Found Prototype Device 10301 | -5/Warlord | Identified Adv. Kinecellerator 10669 | -5/Warlord | Spotted Striker 10669 | -5/Warlord | Spotted Striker 10775 | -5/Warlord | Spotted B-86 Titan 10821 | -5/Warlord | Spotted Executioner 10821 | -5/Warlord | Spotted Striker 10840 | -5/Warlord | Spotted B-86 Titan 10841 | -5/Warlord | Spotted Executioner 10841 | -5/Warlord | Spotted Striker 10848 | -5/Warlord | Spotted Striker 10848 | -5/Warlord | Spotted Executioner 10862 | -5/Warlord | Spotted Striker 10862 | -5/Warlord | Spotted Striker 10865 | -5/Warlord | Spotted Striker 10866 | -5/Warlord | Spotted Executioner 10868 | -5/Warlord | Core integrity fell below 50% 10877 | -5/Warlord | Spotted Executioner 10882 | -5/Warlord | Destroyed Executioner 10883 | -5/Warlord | Core integrity fell below 20% 10884 | -5/Warlord | Released all parts (1) 10896 | -5/Warlord | Destroyed by Striker with Plasma Lance Last Messages --------------- 10882_ Destroyed Imp. Antigrav System. 10882_ Destroyed Lgt. Quantum Reactor. 10882_ G-67 Veteran destroyed. 10883_ P-70 Sage suffers critical hit. 10883_ Gui. Plasma Cannon blown off. 10883_ Adv. Hacking Suite blown off. 10883_ E-15 Imp destroyed. 10883_ Adv. Signal Interpreter destroyed. 10884_ P-70 Sage resets P-70 Sage, system corruption cleaned. 10884_ Released Lrg. Storage Unit. 10887_ E-15 Imp destroyed. 10888_ Acquired Cesium-ion Thruster. 10892_ Cesium-ion Thruster blown off. 10892_ E-15 Imp destroyed. 10892_ Acquired 19 matter. 10893_ Cesium-ion Thruster fries itself beyond repair. 10895_ System corrupted: Component data lost. 10895_ S-27 Virus triggered Fire Trap. 10895_ Burning plasma bursts from the floor. 10895_ S-27 Virus destroyed. Map ----- +----------------------------------------------------+ | ???????????????????????????????????????# ##### | | ???????????????????????????????????????# | | ???????????????????????????????????????# | | ???????????????????????????????????????# | | ???????????????????????????????????????# ##### | | ???????????????????????????????????????#######???? | | ?????????????????????????????????????????????????? | | ?????????????????????????????????????????????????? | | ?????????????????????????????????????????????????? | | ???????????????????????????????????????????????### | | ???????????????????????????????????????????????# # | | ??????????????????????????????????############## | | ??????????????????????????????????#""""" "" ""# | | ??????????????????????????????????#" # | | ??????????######??????????????????# # | | ??????#??? #??????????????????#" | | ??????# """ #??????????????????# | | ??????# """ ########???????????# != | | ??????# """ ##"""""##??????????# # | | ??????# ##" X X ???????????#" # | | ??????# """ ##"X #??????????#""""""" # | | ??????# """ #?" #################### # | | ??????# """ ##"X X?# % ##= ! # ### | | ??????# #"### ### """ ##= #?# | | ###???#####"#### # ## ## """ % ##= #?# | | # """??## p p=pK @"""s ##= #?? | | # "!"??#"/g gK ggKgggpK K s% ## =!* #X #?# | | # " "## # ######g######## """* ###############?# | | # ##?# #??? # """ #????????#"###### | | # #### "#### ## """ #??????# | | ### != ### ## E x ####???# !! | | ??# []%!# # #######/#### ####% =! ! | | ?# ! #?????# /%%!! | | ?# " # #????## # | | ?# ## ######" " | | ?# % ### % """"###### | | ?# # # # #???###### | | ?## [ # ##### # ## ]% ##### | | ??# %[ / / | | ??# # #### ## # ## # ###"#"" #"" *% # | | ??# ######???##### ## ###??# #####%= # | | ??# #??#######???#######????####?# / ! + | | ??# #?##"""!!#??????##########???# #"#"" | | ??# #?#" X !!#??????""""""""""???# #?# | | ??# #?#! ""#?????"" """""""??# ###?# | | ??# #?#! X""#?????"""X ""#?# ########## | | ??# #?#! """#???#""" ""#?## = #???? | | ??# #?## ####???# " ""#??## #/%! ##### | | ??# #??##+##?????# ""#???# #"* /%= | | ??# #??# #???????"""[ ""#???# #" #!### | +----------------------------------------------------+ Best States ------------- Heat Dissipation 40 Energy Generation 31 Energy Capacity 340 Matter Stores 300 Matter Capacity 300 Sight Range 16 Robot Scan Range 20 Terrain Scan Density 10 ECM Strength 3 Jamming Range 14 Armor Coverage 750 Resistance: TH 10 Propulsion Shielding 66 Weapon Shielding 33 Evasion (%) 65 Recoil Reduction 3 Kinecelleration 30 Offensive Hacking 54 Defensive Hacking 32 Item Schematics ----------------- Hcp. Storage Unit | -10/Materials | Hacked Hacking Suite | -8/Materials | Scanalyzed Imp. Propulsion Shielding | -8/Materials | Scanalyzed Imp. Flight Unit | -8/Materials | Scanalyzed Med. Storage Unit | -8/Materials | Scanalyzed Imp. System Shield | -7/Factory | Hacked Mak. Transmission Jammer | -6/Factory | Scanalyzed Imp. Light Armor Plating | -6/Factory | Scanalyzed Nuclear Pulse Array | -6/Factory | Hacked Adv. Hacking Suite | -6/Factory | Hacked Combat Drone Bay | -6/Data Miner | Free Lgt. Regenerative Plating | -6/Data Miner | Free Exp. Flexi-carbon Leg | -6/Data Miner | Free Exp. Cesium-ion Thruster | -6/Data Miner | Free Exp. Sensor Array | -6/Data Miner | Free Exp. Terrain Scan Processor | -6/Data Miner | Free Exp. Targeting Computer | -6/Data Miner | Free Tactical Coordination Suite | -6/Data Miner | Free Cloaking Device | -6/Data Miner | Free Mni. Smartbomb Launcher | -6/Data Miner | Free Plasma Sword | -6/Data Miner | Free Robot Schematics ------------------ S-27 Virus | -6/Data Miner | Free G-50 Soldier | -6/Data Miner | Free G-67 Veteran | -6/Data Miner | Free L-41 Fighter | -6/Data Miner | Free X-72 Disruptor | -6/Data Miner | Free P-70 Sage | -6/Data Miner | Free I-36 Angel | -6/Data Miner | Free Fabricated ------------ Imp. Flight Unit | x1 | -7/Factory Imp. System Shield | x1 | -7/Factory Nuclear Pulse Array | x2 | -6/Factory Nuclear Pulse Array | x2 | -6/Factory Adv. Hacking Suite | x1 | -6/Factory Imp. System Shield | x1 | -5/Factory Mni. Smartbomb Launcher | x1 | -5/Factory Adv. Hacking Suite | x1 | -5/Factory Adv. Hacking Suite | x1 | -5/Factory Alien Tech Used ----------------- None Achievements -------------- None Challenges ------------ None Game ------ Seed HardcellMetafieldRegenerator Manual? 0 Play Time 01:43:35 Cumulative 708.7 hours Start 2020.11.14 @ 02:02:28 End 2020.11.14 @ 03:47:23 Sessions 1 Manual Loads 0 Difficulty Rogue Special Mode None Game No. 509 Rogue 505 Adventurer 4 Explorer 0 Win Type - Total 80 Types 63/7/3/3/2/0/0/1/1 Lore% 94 Gallery% 96 Achievement% 96 Wizard Run 0 Options --------- ASCII 0 Keyboard 0 Movement Vi Keybinds 0 Fullscreen 0 Font 16/Terminus Map View 76x50 Tactical HUD 1 Map Filters NONE Filters NONE Steam 1 RUN: 350df566-f62b-4264-8ff6-6942c4eb9d54